{"text_format":"1","workbook":"xlsx","n_sheets":1,"sheets":["Адмін "],"not_rendered":{"charts":0,"images":0,"macros":1,"external_links":0,"defined_names":0,"comments":0,"pivot_tables":0},"unopened":[],"bounds":{"document_bytes":16777216,"sheet_cells":100000,"rows_first":2000,"rows_last":500,"rows_between":2000,"halvings":0,"cell_chars":16384,"cell_head_chars":4096},"cells_cut":0,"cells_raw":0,"read":"whole","date_system":"1900"}

{"sheet":"Адмін ","index":0,"n_rows":55,"n_cols":36,"rows_kept":55,"cut":false,"hidden":false,"merged":[]}
[null,"Пример",{"$f":"Menu(C3:C12)","v":"картофель"},{"$f":"Menu(D3:D12)","v":"морковь"},"лук","масло","соль","капуста, гречка","свекла","фасоль","сок томатный","масло сливоч.","мука","мясо куриное, рыба","сахар","чай","хлеб пшеничный","лимон","мясо св","","бедро куриное","сливки"]
[]
[null,"Борщ  крас.",{"$f":"IFERROR(VLOOKUP($B$3:$B$12,$B$13:$V$17,2,0),\"\")","v":"картофель"},{"$f":"IFERROR(VLOOKUP($B$3,$B$13:$V$17,3,0),\"\")","v":"морковь"},{"$f":"IFERROR(VLOOKUP($B$3,$B$13:$V$17,4,0),\"\")","v":"лук"},{"$f":"IFERROR(VLOOKUP($B$3,$B$13:$V$17,5,0),\"\")","v":"масло"},{"$f":"IFERROR(VLOOKUP($B$3,$B$13:$V$17,6,0),\"\")","v":"соль"},{"$f":"IFERROR(VLOOKUP($B$3,$B$13:$V$17,7,0),\"\")","v":"капуста"},{"$f":"IFERROR(VLOOKUP($B$3,$B$13:$V$17,8,0),\"\")","v":"свекла"},{"$f":"IFERROR(VLOOKUP($B$3,$B$13:$V$17,9,0),\"\")","v":"фасоль"},{"$f":"IFERROR(VLOOKUP($B$3,$B$13:$V$17,10,0),\"\")","v":"сок томатный"},{"$f":"IFERROR(VLOOKUP($B$3,$B$13:$V$17,11,0),\"\")","v":0},{"$f":"IFERROR(VLOOKUP($B$3,$B$13:$V$17,12,0),\"\")","v":0},{"$f":"IFERROR(VLOOKUP($B$3,$B$13:$V$17,13,0),\"\")","v":0},{"$f":"IFERROR(VLOOKUP($B$3,$B$13:$V$17,14,0),\"\")","v":0},{"$f":"IFERROR(VLOOKUP($B$3,$B$13:$V$17,15,0),\"\")","v":0},{"$f":"IFERROR(VLOOKUP($B$3,$B$13:$V$17,16,0),\"\")","v":0},{"$f":"IFERROR(VLOOKUP($B$3,$B$13:$V$17,17,0),\"\")","v":0},{"$f":"IFERROR(VLOOKUP($B$3,$B$13:$V$17,18,0),\"\")","v":0},{"$f":"IFERROR(VLOOKUP($B$3,$B$13:$V$17,19,0),\"\")","v":0},{"$f":"IFERROR(VLOOKUP($B$3,$B$13:$V$17,20,0),\"\")","v":0},{"$f":"IFERROR(VLOOKUP($B$3,$B$13:$V$17,21,0),\"\")","v":"сливки"}]
[null,"Каша гречневая с мясной подливой",{"$f":"IFERROR(VLOOKUP($B$4,$B$18:$V$28,2,0),\"\")","v":0},{"$f":"IFERROR(VLOOKUP($B$4,$B$18:$V$28,3,0),\"\")","v":"морковь"},{"$f":"IFERROR(VLOOKUP($B$4,$B$18:$V$28,4,0),\"\")","v":"лук"},{"$f":"IFERROR(VLOOKUP($B$4,$B$18:$V$28,5,0),\"\")","v":"масло"},{"$f":"IFERROR(VLOOKUP($B$4,$B$18:$V$28,6,0),\"\")","v":"соль"},{"$f":"IFERROR(VLOOKUP($B$4,$B$18:$V$28,7,0),\"\")","v":"гречка"},{"$f":"IFERROR(VLOOKUP($B$4,$B$18:$V$28,8,0),\"\")","v":0},{"$f":"IFERROR(VLOOKUP($B$4,$B$18:$V$28,9,0),\"\")","v":0},{"$f":"IFERROR(VLOOKUP($B$4,$B$18:$V$28,10,0),\"\")","v":"сок томатный"},{"$f":"IFERROR(VLOOKUP($B$4,$B$18:$V$28,11,0),\"\")","v":"масло сливоч."},{"$f":"IFERROR(VLOOKUP($B$4,$B$18:$V$28,12,0),\"\")","v":"мука"},{"$f":"IFERROR(VLOOKUP($B$4,$B$18:$V$28,13,0),\"\")","v":"мясо куриное"},{"$f":"IFERROR(VLOOKUP($B$4,$B$18:$V$28,14,0),\"\")","v":0},{"$f":"IFERROR(VLOOKUP($B$4,$B$18:$V$28,15,0),\"\")","v":0},{"$f":"IFERROR(VLOOKUP($B$4,$B$18:$V$28,16,0),\"\")","v":0},{"$f":"IFERROR(VLOOKUP($B$4,$B$18:$V$28,17,0),\"\")","v":0},{"$f":"IFERROR(VLOOKUP($B$4,$B$18:$V$28,18,0),\"\")","v":"мясо св"},{"$f":"IFERROR(VLOOKUP($B$4,$B$18:$V$28,19,0),\"\")","v":0},{"$f":"IFERROR(VLOOKUP($B$4,$B$18:$V$28,20,0),\"\")","v":"бедро куриное"},{"$f":"IFERROR(VLOOKUP($B$4,$B$18:$V$28,21,0),\"\")","v":0}]
[null,"Рыба тушеная",{"$f":"IFERROR(VLOOKUP($B$5,$B$29:$V$37,2,0),\"\")","v":0},{"$f":"IFERROR(VLOOKUP($B$5,$B$29:$V$37,3,0),\"\")","v":"морковь"},{"$f":"IFERROR(VLOOKUP($B$5,$B$29:$V$37,4,0),\"\")","v":"лук"},{"$f":"IFERROR(VLOOKUP($B$5,$B$29:$V$37,5,0),\"\")","v":"масло"},{"$f":"IFERROR(VLOOKUP($B$5,$B$29:$V$37,6,0),\"\")","v":"соль"},{"$f":"IFERROR(VLOOKUP($B$5,$B$29:$V$37,7,0),\"\")","v":0},{"$f":"IFERROR(VLOOKUP($B$5,$B$29:$V$37,8,0),\"\")","v":0},{"$f":"IFERROR(VLOOKUP($B$5,$B$29:$V$37,9,0),\"\")","v":0},{"$f":"IFERROR(VLOOKUP($B$5,$B$29:$V$37,10,0),\"\")","v":"сок томатный"},{"$f":"IFERROR(VLOOKUP($B$5,$B$29:$V$37,11,0),\"\")","v":0},{"$f":"IFERROR(VLOOKUP($B$5,$B$29:$V$37,12,0),\"\")","v":"мука"},{"$f":"IFERROR(VLOOKUP($B$5,$B$29:$V$37,13,0),\"\")","v":"рыба"},{"$f":"IFERROR(VLOOKUP($B$5,$B$29:$V$37,14,0),\"\")","v":0},{"$f":"IFERROR(VLOOKUP($B$5,$B$29:$V$37,15,0),\"\")","v":0},{"$f":"IFERROR(VLOOKUP($B$5,$B$29:$V$37,16,0),\"\")","v":0},{"$f":"IFERROR(VLOOKUP($B$5,$B$29:$V$37,17,0),\"\")","v":0},{"$f":"IFERROR(VLOOKUP($B$5,$B$29:$V$37,18,0),\"\")","v":0},{"$f":"IFERROR(VLOOKUP($B$5,$B$29:$V$37,19,0),\"\")","v":0},{"$f":"IFERROR(VLOOKUP($B$5,$B$29:$V$37,20,0),\"\")","v":0},{"$f":"IFERROR(VLOOKUP($B$5,$B$29:$V$37,21,0),\"\")","v":0}]
[null,"Чай",{"$f":"IFERROR(VLOOKUP($B$6,$B$38:$V$39,2,0),\"\")","v":0},{"$f":"IFERROR(VLOOKUP($B$6,$B$38:$V$39,3,0),\"\")","v":0},{"$f":"IFERROR(VLOOKUP($B$6,$B$38:$V$39,4,0),\"\")","v":0},{"$f":"IFERROR(VLOOKUP($B$6,$B$38:$V$39,5,0),\"\")","v":0},{"$f":"IFERROR(VLOOKUP($B$6,$B$38:$V$39,6,0),\"\")","v":0},{"$f":"IFERROR(VLOOKUP($B$6,$B$38:$V$39,7,0),\"\")","v":0},{"$f":"IFERROR(VLOOKUP($B$6,$B$38:$V$39,8,0),\"\")","v":0},{"$f":"IFERROR(VLOOKUP($B$6,$B$38:$V$39,9,0),\"\")","v":0},{"$f":"IFERROR(VLOOKUP($B$6,$B$38:$V$39,10,0),\"\")","v":0},{"$f":"IFERROR(VLOOKUP($B$6,$B$38:$V$39,11,0),\"\")","v":0},{"$f":"IFERROR(VLOOKUP($B$6,$B$38:$V$39,12,0),\"\")","v":0},{"$f":"IFERROR(VLOOKUP($B$6,$B$38:$V$39,13,0),\"\")","v":0},{"$f":"IFERROR(VLOOKUP($B$6,$B$38:$V$39,14,0),\"\")","v":"сахар"},{"$f":"IFERROR(VLOOKUP($B$6,$B$38:$V$39,15,0),\"\")","v":"чай"},{"$f":"IFERROR(VLOOKUP($B$6,$B$38:$V$39,16,0),\"\")","v":0},{"$f":"IFERROR(VLOOKUP($B$6,$B$38:$V$39,17,0),\"\")","v":"лимон"},{"$f":"IFERROR(VLOOKUP($B$6,$B$38:$V$39,18,0),\"\")","v":0},{"$f":"IFERROR(VLOOKUP($B$6,$B$38:$V$39,19,0),\"\")","v":0},{"$f":"IFERROR(VLOOKUP($B$6,$B$38:$V$39,20,0),\"\")","v":0},{"$f":"IFERROR(VLOOKUP($B$6,$B$38:$V$39,21,0),\"\")","v":0}]
[null,"Хлеб пшеничный",{"$f":"IFERROR(VLOOKUP($B$7,$B$41:$V$41,2,0),\"\")","v":0},{"$f":"IFERROR(VLOOKUP($B$7,$B$41:$V$41,3,0),\"\")","v":0},{"$f":"IFERROR(VLOOKUP($B$7,$B$41:$V$41,4,0),\"\")","v":0},{"$f":"IFERROR(VLOOKUP($B$7,$B$41:$V$41,5,0),\"\")","v":0},{"$f":"IFERROR(VLOOKUP($B$7,$B$41:$V$41,6,0),\"\")","v":0},{"$f":"IFERROR(VLOOKUP($B$7,$B$41:$V$41,7,0),\"\")","v":0},{"$f":"IFERROR(VLOOKUP($B$7,$B$41:$V$41,8,0),\"\")","v":0},{"$f":"IFERROR(VLOOKUP($B$7,$B$41:$V$41,9,0),\"\")","v":0},{"$f":"IFERROR(VLOOKUP($B$7,$B$41:$V$41,10,0),\"\")","v":0},{"$f":"IFERROR(VLOOKUP($B$7,$B$41:$V$41,11,0),\"\")","v":0},{"$f":"IFERROR(VLOOKUP($B$7,$B$41:$V$41,12,0),\"\")","v":0},{"$f":"IFERROR(VLOOKUP($B$7,$B$41:$V$41,13,0),\"\")","v":0},{"$f":"IFERROR(VLOOKUP($B$7,$B$41:$V$41,14,0),\"\")","v":0},{"$f":"IFERROR(VLOOKUP($B$7,$B$41:$V$41,15,0),\"\")","v":0},{"$f":"IFERROR(VLOOKUP($B$7,$B$41:$V$41,16,0),\"\")","v":"хлеб пшеничный"},{"$f":"IFERROR(VLOOKUP($B$7,$B$41:$V$41,17,0),\"\")","v":0},{"$f":"IFERROR(VLOOKUP($B$7,$B$41:$V$41,18,0),\"\")","v":0},{"$f":"IFERROR(VLOOKUP($B$7,$B$41:$V$41,19,0),\"\")","v":0},{"$f":"IFERROR(VLOOKUP($B$7,$B$41:$V$41,20,0),\"\")","v":0},{"$f":"IFERROR(VLOOKUP($B$7,$B$41:$V$41,21,0),\"\")","v":0}]
[null,null,{"$f":"IFERROR(VLOOKUP($B$8,$B$40:$V$40,2,0),\"\")","v":""},{"$f":"IFERROR(VLOOKUP($B$8,$B$40:$V$40,3,0),\"\")","v":""},{"$f":"IFERROR(VLOOKUP($B$8,$B$40:$V$40,4,0),\"\")","v":""},{"$f":"IFERROR(VLOOKUP($B$8,$B$40:$V$40,5,0),\"\")","v":""},{"$f":"IFERROR(VLOOKUP($B$8,$B$40:$V$40,6,0),\"\")","v":""},{"$f":"IFERROR(VLOOKUP($B$8,$B$40:$V$40,7,0),\"\")","v":""},{"$f":"IFERROR(VLOOKUP($B$8,$B$40:$V$40,8,0),\"\")","v":""},{"$f":"IFERROR(VLOOKUP($B$8,$B$40:$V$40,9,0),\"\")","v":""},{"$f":"IFERROR(VLOOKUP($B$8,$B$40:$V$40,10,0),\"\")","v":""},{"$f":"IFERROR(VLOOKUP($B$8,$B$40:$V$40,11,0),\"\")","v":""},{"$f":"IFERROR(VLOOKUP($B$8,$B$40:$V$40,12,0),\"\")","v":""},{"$f":"IFERROR(VLOOKUP($B$8,$B$40:$V$40,13,0),\"\")","v":""},{"$f":"IFERROR(VLOOKUP($B$8,$B$40:$V$40,14,0),\"\")","v":""},{"$f":"IFERROR(VLOOKUP($B$8,$B$40:$V$40,15,0),\"\")","v":""},{"$f":"IFERROR(VLOOKUP($B$8,$B$40:$V$40,16,0),\"\")","v":""},{"$f":"IFERROR(VLOOKUP($B$8,$B$40:$V$40,17,0),\"\")","v":""},{"$f":"IFERROR(VLOOKUP($B$8,$B$40:$V$40,18,0),\"\")","v":""},{"$f":"IFERROR(VLOOKUP($B$8,$B$40:$V$40,19,0),\"\")","v":""},{"$f":"IFERROR(VLOOKUP($B$8,$B$40:$V$40,20,0),\"\")","v":""},{"$f":"IFERROR(VLOOKUP($B$8,$B$40:$V$40,21,0),\"\")","v":""}]
[null,null,{"$f":"IFERROR(VLOOKUP($B$9,$B$42:$V$43,2,0),\"\")","v":""},{"$f":"IFERROR(VLOOKUP($B$9,$B$42:$V$43,3,0),\"\")","v":""},{"$f":"IFERROR(VLOOKUP($B$9,$B$42:$V$43,4,0),\"\")","v":""},{"$f":"IFERROR(VLOOKUP($B$9,$B$42:$V$43,5,0),\"\")","v":""},{"$f":"IFERROR(VLOOKUP($B$9,$B$42:$V$43,6,0),\"\")","v":""},{"$f":"IFERROR(VLOOKUP($B$9,$B$42:$V$43,7,0),\"\")","v":""},{"$f":"IFERROR(VLOOKUP($B$9,$B$42:$V$43,8,0),\"\")","v":""},{"$f":"IFERROR(VLOOKUP($B$9,$B$42:$V$43,9,0),\"\")","v":""},{"$f":"IFERROR(VLOOKUP($B$9,$B$42:$V$43,10,0),\"\")","v":""},{"$f":"IFERROR(VLOOKUP($B$9,$B$42:$V$43,11,0),\"\")","v":""},{"$f":"IFERROR(VLOOKUP($B$9,$B$42:$V$43,12,0),\"\")","v":""},{"$f":"IFERROR(VLOOKUP($B$9,$B$42:$V$43,13,0),\"\")","v":""},{"$f":"IFERROR(VLOOKUP($B$9,$B$42:$V$43,14,0),\"\")","v":""},{"$f":"IFERROR(VLOOKUP($B$9,$B$42:$V$43,15,0),\"\")","v":""},{"$f":"IFERROR(VLOOKUP($B$9,$B$42:$V$43,16,0),\"\")","v":""},{"$f":"IFERROR(VLOOKUP($B$9,$B$42:$V$43,17,0),\"\")","v":""},{"$f":"IFERROR(VLOOKUP($B$9,$B$42:$V$43,18,0),\"\")","v":""},{"$f":"IFERROR(VLOOKUP($B$9,$B$42:$V$43,19,0),\"\")","v":""},{"$f":"IFERROR(VLOOKUP($B$9,$B$42:$V$43,20,0),\"\")","v":""},{"$f":"IFERROR(VLOOKUP($B$9,$B$42:$V$43,21,0),\"\")","v":""}]
[null,null,null,null,null,null,null,null,null,null,null,null,null,null,null,null,null,null,null,null,{"$f":"IFERROR(VLOOKUP($B$10,$B$45:$V$45,20,0),\"\")","v":""}]
[null,null,null,null,null,null,null,null,null,null,null,null,null,null,null,null,null,null,null,{"$f":"IFERROR(VLOOKUP($B$11,B44:V44,19,0),\"\")","v":""}]
[null,null,null,null,null,null,null,null,null,null,null,null,null,null,null,null,null,null,null,null,null,{"$f":"IFERROR(VLOOKUP($B$12,$B$46:$V$47,21,0),\"\")","v":""}]
[1,{"$f":"IF($B$3=\"Борщ  крас.\",\"Борщ  крас.\")","v":"Борщ  крас."},"картофель","морковь","лук","масло","соль","капуста","свекла","фасоль","сок томатный",null,null,null,null,null,null,null,null,null,null,"сливки",null,null,null,null,null,null,null,null,null,null,null,"бедро куриное",null,"Борщ  крас."]
[2,{"$f":"IF($B$3=\"Борщ зеленый\",\"Борщ зеленый\")","v":false},"картофель","морковь","лук","масло","соль","рис","яйцо","щавель",null,null,null,null,null,null,null,null,null,null,null,"сливки",null,null,null,null,null,null,null,null,null,null,null,"мука",null,"Борщ зеленый"]
[3,{"$f":"IF($B$3=\"Суп картофельный с гречневой крупой\",\"Суп картофельный с гречневой крупой\")","v":false},"картофель","морковь","лук","масло","соль","гречка",null,null,null,null,null,null,null,null,null,null,null,null,null,null,null,null,null,null,null,null,null,null,null,null,null,"булочка",null,"Суп картофельный с гречневой крупой"]
[4,{"$f":"IF($B$3=\"Суп картофельный гороховый\",\"Суп картофельный гороховый\")","v":false},"картофель","морковь","лук","масло","соль",null,"горох",null,null,null,null,null,null,null,null,null,null,null,null,null,null,null,null,null,null,null,null,null,null,null,null,"свекла",null,"Суп картофельный гороховый"]
[5,{"$f":"IF($B$3=\"Суп картофельный с макаронами\",\"Суп картофельный с макаронами\")","v":false},"картофель","морковь","лук","масло","соль","макароны",null,null,null,null,null,null,null,null,null,null,null,null,null,null,null,null,null,null,null,null,null,null,null,null,null,"горох",null,"Суп картофельный с макаронами"]
[6,{"$f":"IF($B$4=\"Картофель тушеный\",\"Картофель тушеный\")","v":false},"картофель","морковь","лук","масло","соль",null,null,null,null,"масло сливоч.",null,null,null,null,null,null,null,null,null,null,null,null,null,null,null,null,null,null,null,null,null,"гречка"]
[7,{"$f":"IF($B$4=\"Картофель пьюре\",\"Картофель пьюре\")","v":false},"картофель",null,null,null,"соль",null,null,null,null,"масло сливоч.","молоко",null,null,null,null,null,null,null,null,null,null,null,null,null,null,null,null,null,null,null,null,"дрожжи",null,"Картофель тушеный"]
[8,{"$f":"IF($B$4=\"Ленивые вареники\",\"Ленивые вареники\")","v":false},null,null,null,"масло","соль",null,null,null,null,"масло сливоч.","мука",null,null,null,null,null,"яйцо",null,"творог кисломол.",null,null,null,null,null,null,null,null,null,null,null,null,"изюм",null,"Картофель пьюре"]
[9,{"$f":"IF($B$4=\"Макароны с маслом\",\"Макароны с маслом\")","v":false},null,null,null,null,"соль",null,null,null,null,null,null,null,null,null,null,null,null,null,null,null,null,null,null,null,null,null,null,null,null,null,null,"капуста",null,"Ленивые вареники"]
[10,null,null,null,null,null,null,null,null,null,null,null,null,null,null,null,null,null,null,null,null,null,null,null,null,null,null,null,null,null,null,null,null,"картофель",null,"Макароны с маслом"]
[11,{"$f":"IF($B$4=\"Молочная манная каша с изюмом\",\"Молочная манная каша с изюмом\")","v":false},null,null,null,null,"соль",null,null,null,null,"масло сливоч.","молоко",null,"сахар",null,null,null,null,"изюм","манка",null,null,null,null,null,null,null,null,null,null,null,null,"щавель"]
[12,{"$f":"IF($B$4=\"Каша гречневая с мясной подливой\",\"Каша гречневая с мясной подливой\")","v":"Каша гречневая с мясной подливой"},null,"морковь","лук","масло","соль","гречка",null,null,"сок томатный","масло сливоч.","мука","мясо куриное",null,null,null,null,"мясо св",null,"бедро куриное",null,null,null,null,null,null,null,null,null,null,null,null,"фасоль",null,"Молочная манная каша с изюмом"]
[13,null,null,null,null,null,null,null,null,null,null,null,null,null,null,null,null,null,null,null,null,null,null,null,null,null,null,null,null,null,null,null,null,"колбаса вареная",null,"Каша гречневая с мясной подливой"]
[14,{"$f":"IF($B$4=\"Овощное рагу\",\"Овощное рагу\")","v":false},"картофель","морковь","лук","масло","соль","капуста",null,null,"сок томатный","масло сливоч.",null,null,null,null,null,null,null,null,null,null,null,null,null,null,null,null,null,null,null,null,null,"лимон"]
[15,{"$f":"IF($B$4=\"Пирожок с капустой\",\"Пирожок с капустой\")","v":false},null,null,"лук","масло","соль","капуста",null,null,null,null,"мука","дрожжи",null,null,null,null,null,null,null,null,null,null,null,null,null,null,null,null,null,null,null,"макароны",null,"Овощное рагу"]
[16,{"$f":"IF($B$4=\"Пирожок с картошкой\",\"Пирожок с картошкой\")","v":false},"картофель",null,"лук","масло","соль",null,null,null,null,null,"мука","дрожжи",null,null,null,null,null,null,null,null,null,null,null,null,null,null,null,null,null,null,null,"манка",null,"Пирожок с капустой"]
[17,{"$f":"IF($B$5=\"Котлета мясная с соусом\",\"Котлета мясная с соусом\")","v":false},null,"морковь","лук","масло","соль",null,null,null,"сок томатный",null,"яйцо","мясо куриное",null,null,"хлеб пшеничный",null,"мясо св",null,null,null,null,null,null,null,null,null,null,null,null,null,null,"масло сливоч.",null,"Пирожок с картошкой"]
[18,{"$f":"IF($B$5=\"Котлета рыбная\",\"Котлета рыбная\")","v":false},null,"морковь","лук","масло","соль",null,null,"яйцо","сок томатный",null,null,"рыба",null,null,"хлеб пшеничный",null,null,null,null,null,null,null,null,null,null,null,null,null,null,null,null,"молоко"]
[19,{"$f":"IF($B$5=\"Рыба тушеная\",\"Рыба тушеная\")","v":"Рыба тушеная"},null,"морковь","лук","масло","соль",null,null,null,"сок томатный",null,"мука","рыба",null,null,null,null,null,null,null,null,null,null,null,null,null,null,null,null,null,null,null,"морковь",null,"Котлета мясная с соусом"]
[20,null,null,null,null,null,null,null,null,null,null,null,null,null,null,null,null,null,null,null,null,null,null,null,null,null,null,null,null,null,null,null,null,"мясо куриное",null,"Котлета рыбная"]
[21,{"$f":"IF($B$5=\"Колбаса вареная\",\"Колбаса вареная\")","v":false},null,null,null,null,null,null,null,null,null,null,null,"колбаса вареная",null,null,null,null,null,null,null,null,null,null,null,null,null,null,null,null,null,null,null,"мясо св",null,"Рыба тушеная"]
[22,{"$f":"IF($B$5=\"Сарделька\",\"Сарделька\")","v":false},null,null,null,null,null,null,null,null,null,null,null,"сарделька",null,null,null,null,null,null,null,null,null,null,null,null,null,null,null,null,null,null,null,"огурец",null,"Колбаса вареная с овощной поджаркой"]
[23,{"$f":"IF($B$5=\"Яйцо отварное\",\"Яйцо отварное\")","v":false},null,null,null,null,null,null,null,null,null,null,null,null,null,null,null,null,null,null,null,null,null,null,null,null,null,null,null,null,null,null,null,"масло",null,"Колбаса вареная"]
[24,{"$f":"IF($B$5=\"Капуста тушеная\",\"Капуста тушеная\")","v":false},null,null,null,null,null,null,null,null,null,null,null,null,null,null,null,null,null,null,null,null,null,null,null,null,null,null,null,null,null,null,null,"помидор",null,"Сарделька"]
[25,{"$f":"IF($B$5=\"Бутерброд с сыром\",\"Бутерброд с сыром\")","v":false},null,null,null,null,null,null,null,null,null,"масло сливоч.",null,"хлеб ржаной",null,null,null,null,"сыр твердый",null,null,null,null,null,null,null,null,null,null,null,null,null,null,"рыба",null,"Яйцо отварное"]
[26,{"$f":"IF($B$6=\"Чай\",\"Чай\")","v":"Чай"},null,null,null,null,null,null,null,null,null,null,null,null,"сахар","чай",null,"лимон",null,null,null,null,null,null,null,null,null,null,null,null,null,null,null,"рис",null,"Капуста тушеная"]
[27,{"$f":"IF($B$6=\"Сок - ф /я\",\"Сок - ф /я\")","v":false},null,null,null,null,null,null,null,null,null,null,null,null,null,"сок ф / я",null,null,null,null,null,null,null,null,null,null,null,null,null,null,null,null,null,"сарделька",null,"Бутерброд с сыром"]
[28,{"$f":"IF($B$8=\"Булочка\",\"Булочка\")","v":false},null,null,null,null,null,null,null,null,null,null,null,null,null,null,null,null,"булочка",null,null,null,null,null,null,null,null,null,null,null,null,null,null,"творог кисломол."]
[29,{"$f":"IF($B$7=\"Хлеб пшеничный\",\"Хлеб пшеничный\")","v":"Хлеб пшеничный"},null,null,null,null,null,null,null,null,null,null,null,null,null,null,"хлеб пшеничный",null,null,null,null,null,null,null,null,null,null,null,null,null,null,null,null,"сыр твердый",null,"Чай"]
[30,{"$f":"IF($B$9=\"Огурец\",\"Огурец\")","v":false},null,null,null,null,null,null,null,null,null,null,null,null,null,null,null,null,null,"огурец",null,null,null,null,null,null,null,null,null,null,null,null,null,"сок томатный",null,"Сок - ф /я"]
[31,{"$f":"IF($B$9=\"Помидор\",\"Помидор\")","v":false},null,null,null,null,null,null,null,null,null,null,null,null,null,null,null,null,null,"помидор",null,null,null,null,null,null,null,null,null,null,null,null,null,"сок ф / я",null,"Булочка"]
[32,{"$f":"IF($B$11=\"Фрукты\",\"Фрукты\")","v":false},null,null,null,null,null,null,null,null,null,null,null,null,null,null,null,null,null,"фрукта",null,null,null,null,null,null,null,null,null,null,null,null,null,"соль"]
[33,{"$f":"IF($B$10=\"Конфеты\",\"Конфеты\")","v":false},null,null,null,null,null,null,null,null,null,null,null,null,null,null,null,null,"конфета",null,null,null,null,null,null,null,null,null,null,null,null,null,null,"сливки",null,"Хлеб пшеничный"]
[34,{"$f":"IF($B$12=\"Йогурт\",\"Йогурт\")","v":false},null,null,null,null,null,null,null,null,null,null,null,null,null,null,null,null,null,null,null,"йогурт",null,null,null,null,null,null,null,null,null,null,null,"филе куриное",null,"Огурец"]
[35,{"$f":"IF($B$12=\"Яйцо отварное\",\"Яйцо отварное\")","v":false},null,null,null,null,null,null,null,null,null,"яйцо",null,null,null,null,null,null,null,null,null,"яйцо",null,null,null,null,null,null,null,null,null,null,null,"хлеб ржаной",null,"Помидор"]
[null,null,null,null,null,null,null,null,null,null,null,null,null,null,null,null,null,null,null,null,null,null,null,null,null,null,null,null,null,null,null,null,null,"хлеб пшеничный"]
[null,null,null,null,null,null,null,null,null,null,null,null,null,null,null,null,null,null,null,null,null,null,null,null,null,null,null,null,null,null,null,null,null,"лук",null,"Фрукты"]
[null,null,null,null,null,null,null,null,null,null,null,null,null,null,null,null,null,null,null,null,null,null,null,null,null,null,null,null,null,null,null,null,null,"сахар",null,"Конфеты"]
[null,null,null,null,null,null,null,null,null,null,null,null,null,null,null,null,null,null,null,null,null,null,null,null,null,null,null,null,null,null,null,null,null,"чай"]
[null,null,null,null,null,null,null,null,null,null,null,null,null,null,null,null,null,null,null,null,null,null,null,null,null,null,null,null,null,null,null,null,null,"яйцо",null,"Йогурт"]
[null,null,null,null,null,null,null,null,null,null,null,null,null,null,null,null,null,null,null,null,null,null,null,null,null,null,null,null,null,null,null,null,null,"йогурт",null,"Яйцо отварное"]
[null,null,null,null,null,null,null,null,null,null,null,null,null,null,null,null,null,null,null,null,null,null,null,null,null,null,null,null,null,null,null,null,null,"конфета"]
[null,null,null,null,null,null,null,null,null,null,null,null,null,null,null,null,null,null,null,null,null,null,null,null,null,null,null,null,null,null,null,null,null,"фрукта"]